{"text_format":"1","workbook":"xlsx","n_sheets":4,"sheets":["Agent ","Etat des services","Activité valorisante ","paramètres"],"not_rendered":{"charts":0,"images":0,"macros":1,"external_links":0,"defined_names":4,"comments":0,"pivot_tables":0},"unopened":[],"bounds":{"document_bytes":16777216,"sheet_cells":100000,"rows_first":2000,"rows_last":500,"rows_between":2000,"halvings":0,"cell_chars":16384,"cell_head_chars":4096},"cells_cut":0,"cells_raw":0,"read":"whole","date_system":"1900"}

{"sheet":"Agent ","index":0,"n_rows":80,"n_cols":10,"rows_kept":80,"cut":false,"hidden":false,"merged":[[11,3,11,4],[12,1,12,4],[13,0,13,4],[8,2,8,4],[0,1,0,4],[1,1,1,4],[2,2,2,4],[3,2,3,4],[4,2,4,4],[5,2,5,4],[6,2,6,4],[7,2,7,4],[9,2,9,4],[10,2,10,4],[79,1,79,4],[40,1,40,4],[52,1,52,2],[53,1,53,2],[54,1,54,2],[64,1,64,2],[64,3,64,4],[58,1,58,2],[59,1,59,2],[60,1,60,2],[61,1,61,2],[65,3,65,4],[67,3,67,4],[49,1,49,4],[48,3,48,4],[45,1,45,3],[74,2,76,4],[77,2,77,4],[16,3,16,4],[17,3,17,4],[18,1,18,4],[20,1,20,2],[20,3,20,4],[21,3,22,4],[62,1,62,2],[51,3,51,4],[51,1,51,2],[44,1,44,3],[43,1,43,3],[47,1,47,2],[71,3,71,4],[68,1,68,4],[70,1,70,2],[70,3,70,4],[21,5,22,5],[47,3,47,4],[23,5,24,5],[23,2,24,2],[26,3,26,4],[28,1,28,4],[23,3,24,4],[50,1,50,4],[37,1,37,4],[30,1,30,2],[30,3,30,4],[27,3,27,4],[32,3,32,4],[66,3,66,4],[42,1,42,4],[34,3,34,4],[35,3,35,4],[36,3,36,4],[14,1,14,2],[14,3,14,4],[39,1,39,4],[41,1,41,4],[38,1,38,2],[21,2,22,2],[25,1,25,4],[31,1,31,4],[15,3,15,4],[33,3,33,4]]}
[null,"PROMOTION INTERNE  Catégorie B                                                   "]
[null,"ANNEE 2024"]
[null,"Grade postulé",null,null,null,null,null,null,null," "]
[null,"Collectivité"]
[null,"ADRESSE"]
[null,"TEL"]
[null,"Mail"]
[null,"NOM Prénom de l'agent proposé"]
[null,"Date de naissance"]
[null,"Grade actuel"]
[null,"Echelon"]
[null,"L'agent a-t-il occupé le poste de secrétaire de Mairie plus de 4 ans ?","oui"]
[]
["Nommer le fichier excel selon le mode suivant :                                                                                                                           REDACTEUR (GRADE POSTULE) - DUPONT Pierre (NOM Prénom) - BONNEVILLE (COLLECTIVITE).\n                                                                                                                                            \n- Etablir 1 fichier PDF à partir du présent fichier Excel (1)\n- Etablir 1 fichier PDF des Pièces Justificatives (2) (attestations de présence au concours, diplômes, attestations de formations,  pièces justificatives relatives aux activités valorisantes)\n\n- signature de chacun de ces 2 dossiers PDF par l'Autorité territoriale, \n\n- les scanner et les nommer selon les modèles suivants : \n(1) : REDACTEUR - DUPONT Pierre - BONNEVILLE\n(2) : REDACTEUR - DUPONT Pierre - BONNEVILLE - PJ\n\nEnvoyer les dossiers uniquement par mail  (2 PDF + 1 Excel par agent) \n(1 mail par agent + reporter dans l'objet du mail le nom du dossier)\nà : promotion.interne@cdg49.fr\navant le 15 mars 2024.\nLorsque l'ensemble des dossiers de la collectivité sera transmis, télécharger le bordereau de transmission des dossiers à partir du site du CDG/ gestion RH/promotion interne, l'envoyer à la même adresse en mettant en objet du mail : BORDEREAU + \"nom de la collectivité\" et nous contacter pour confirmation de la bonne réception des dossiers :  02 72 47 02 27 ou 02 41 24 18 82."]
[null,"1/ Examen professionnel ou concours (25 points max)",null,"Note sur …"]
[null,"L'agent a-t-il passé avec succès l'examen professionnel ? ",null,"10 points ",null,{"$f":"IF(C16=\"OUI\",10,0)","v":0}]
[null,"L'agent a-t-il été lauréat du concours donnant accès au grade sans avoir été nommé ?",null,"10 points ",null,{"$f":"IF(C17=\"OUI\",10,0)","v":0}]
[null,"L'agent s'est-il présenté au concours donnant accès  au grade sans succès ? ",null,"5 points ",null,{"$f":"IF(C18=\"OUI\",5,0)","v":0}]
[null,null,null,null,null,{"$f":"F16+F17+F18","v":0}]
[]
[null,"2/ Valorisation des acquis et de l'expérience                                       (15 points max au titre du 2.1 et 2.2 + 5 points max au titre du 2.3)",null,"Note sur …"]
[null,"2.1 Ancienneté dans le cadre d'emplois inférieur permettant l'accès au grade postulé                      ",{"$f":"'Etat des services'!J40","v":0},"1 point par année révolue plafonné à 15 points",null,{"$f":"MIN(15,C22)","v":0}]
[]
[null,"2.2 Ancienneté dans une activité valorisante pour le grade postulé. (notamment : assistant de prévention, SST, CT, CAP, CHSCT, COS, CNAS - ne pas inscrire d'ancienneté pour les correspondants CNAS-, membre d'association, activité dans le secteur privé, activité dans le secteur public ...)",{"$f":"'Activité valorisante '!H19","v":0},"1 point par année révolue, valablement retenue, plafonné à 15 points",null,{"$f":"MIN(15,C24)","v":0}]
[]
[null,null,null,null,null,{"$f":"MIN(15,(F22+F24))","v":0}]
[null,"2.3 L'agent se trouve-t-il au dernier échelon du grade inférieur permettant l'accès au grade postulé ?                        "]
[null,"Si oui, saisir le nombre d'années",null,"1,5 point par année révolue dans l'échelon plafonné à 5 points",null,{"$f":"MIN(5,(ROUNDDOWN(C28,0)*1.5))","v":0}]
[null,null,null,null,null,{"$f":"F26+F28","v":0}]
[]
[null,"3/ Valeur professionnelle (10 points max)",null,"Note sur …"]
[null,"L'autorité d'emploi acte-t-elle de la valeur de l'agent au regard des éléments ci-dessous ?",null,null,null,null,null,null,null," "]
[null,"3.1 L'implication professionnelle",null,"2,5 points",null,{"$f":"IF(C33=\"oui\",2.5,0)","v":0}]
[null,"3.2 La compétence professionnelle",null,"2,5 points",null,0]
[null,"3.4 La qualité relationnelle mise en œuvre avec et ou les élus, la hiérarchie",null,"2,5 points",null,0]
[null,"3.4 La qualité managériale vis-à-vis du ou des N-1",null,"2,5 points",null,0]
[null,"3.2 L'expertise professionnelle",null,"2,5 points",null,{"$f":"IF(C37=\"oui\",2.5,0)","v":0}]
[null,null,null,null,null,{"$f":"MIN(10,(F33+F34+F35+F36+F37))","v":0}]
[null,"4/ Poste occupé par l’agent (30 points max)"]
[null,"4.1 Responsabilité et ou expertise particulière ou technicité particulière"]
[null,"DESCRIPTIF DU POSTE OCCUPE PAR L'AGENT "]
[null,"OBLIGATOIRE"]
[]
[null,"S'agit-il d'un poste de secrétaire de Mairie de moins de 1000 hab donnant lieu à NBI",null,null,null,{"$f":"IF(E44=\"oui\",30,0)","v":0}]
[null,"S'agit-il d'un poste sur lequel l'agent exerce des fonctions de direction, de responsabilité de service dans une collectivité territoriale ou un établissement public dont l'emploi de DGS est classé +5 000 habitants",null,null,null,{"$f":"IF(E45=\"oui\",30,0)","v":0}]
[null,"S'agit-il d'un poste sur lequel l'agent exerce une responsabilité et/ou fait preuve d'une technicité particulière (2 à 30 points) ?                                                                                       ",null,null,null,{"$f":"IF(E46=\"oui\",30,0)","v":0}]
[]
[null,"4.2 Encadrement",null,"Note sur …"]
[null,"Nombre total d'agents relevant de la responsabilité hiérarchique de l'agent",null,"5 points",null,{"$f":"VLOOKUP(C49,encadrement,2,0)","v":{"$error":"#N/A"}}]
[null,"TOTAL DES POINTS ATTRIBUES"]
[null,"5/ Stages ou Formations en adéquation avec les missions du grade postulé (5 points max)"]
[null,null,null,"1 point pour 5 jours révolus dans la limite de 3 points"]
[null,"Intitulé de la formation (globaliser si plusieurs sessions)",null,"Saisir le nombre de jours de formation"]
[null,null,null,null,{"$f":"D54/5","v":0}]
[null,null,null,null,0]
[null,null,null,null,0]
[null,null,null,null,0]
[null,null,null,null,0]
[null,null,null,null,0]
[null,null,null,null,0]
[null,null,null,null,0]
[null,null,null,null,0]
[null,"Nombre total de jours de formations reprises ci-dessus",null,{"$f":"SUM(D54:D62)","v":0},{"$f":"SUM(E54:E62)","v":0},{"$f":"ROUNDDOWN(MIN(3,E63),0)","v":0}]
[]
[null,"Formation initiale ",null,"Note sur …"]
[null,"Agent titulaire d'un diplôme supérieur au  niveau 4 (ancien niveau IV) (niveau bac) ",null,"2 points",null,{"$f":"IF(G67=1,2,0)","v":0}]
[null,"Agent titulaire d'un diplôme de niveau 4                             (ancien niveau IV) (niveau bac)",null,"1 points",null,{"$f":"IF(G67=2,1,0)","v":0},3]
[null,"Agent titulaire d'un diplôme inférieur au niveau 4 ou sans diplôme",null,"0 points",null,{"$f":"IF(G67=3,0,0)","v":0}]
[null,null,null,null,null,{"$f":"MIN(5,(F67+F66+F63))","v":0}]
[]
[null,"6/ Promotions interne antérieures (10 points)",null,"Note sur …"]
[null,"L'agent a-t-il déjà bénéficié d'une promotion interne ou une promotion sociale (ancienne appellation) ?                                                         ",null,"10 points",null,{"$f":"IF(C72=\"non\",10,0)","v":0}]
[null,null,null,null,null,{"$f":"SUM(F72)","v":0}]
[]
[null,"à ………………….."]
[null,"le AA/MM/JJ"]
[null,"\"Nom Prénom de l'autorité territoriale\" "]
[null,"certifiant l'exactitude les renseignements portés sur le présent document","Cachet et signature"]
[]
[null,"TOTAL DES POINTS ATTRIBUES",null,null,null,{"$f":"F73+F69+F50+F38+F29+F19","v":0}]

{"sheet":"Etat des services","index":1,"n_rows":47,"n_cols":13,"rows_kept":47,"cut":false,"hidden":true,"merged":[[1,5,1,8],[1,1,2,4],[39,1,39,4],[3,1,3,4],[19,1,19,4],[24,1,24,4],[25,1,25,4],[30,1,30,4],[21,1,21,4]]}
[]
[null,"Ancienneté (services publics effectifs) dans un ou des grades permettant l'accès au grade postulé déduction faite des périodes d'interruptions d'activité (disponibilité, congé parental)"]
[null,null,null,null,null,"2023-12-31","Années","Mois","Jours"]
[null,"Contractuel"]
[null,"du",null,"au",null,{"$f":"IF($E$5=\"\",0,DAYS360(C5,$E$5))","v":0},{"$f":"ROUNDDOWN(F5/360,0)","v":0},{"$f":"ROUNDDOWN((F5-(G5*360))/30,0)","v":0},{"$f":"ROUNDDOWN(F5-(G5*360)-(H5*30),0)","v":0},null,null," "]
[null,"du",null,"au",null,{"$f":"IF($E$6=\"\",0,DAYS360(C6,$E$6))","v":0},0,0,0]
[null,"du",null,"au",null,{"$f":"IF($E$7=\"\",0,DAYS360(C7,$E$7))","v":0},0,0,0]
[null,"du",null,"au",null,{"$f":"IF($E$8=\"\",0,DAYS360(C8,$E$8))","v":0},0,0,0]
[null,"du",null,"au",null,{"$f":"IF($E$9=\"\",0,DAYS360(C9,$E$9))","v":0},0,0,0]
[null,"du",null,"au",null,{"$f":"IF($E$10=\"\",0,DAYS360(C10,$E$10))","v":0},0,0,0]
[null,"du",null,"au",null,{"$f":"IF($E$11=\"\",0,DAYS360(C11,$E$11))","v":0},0,0,0]
[null,"du",null,"au",null,{"$f":"IF($E$12=\"\",0,DAYS360(C12,$E$12))","v":0},0,0,0]
[null,"du",null,"au",null,{"$f":"IF($E$13=\"\",0,DAYS360(C13,$E$13))","v":0},0,0,0]
[null,"du",null,"au",null,{"$f":"IF($E$14=\"\",0,DAYS360(C14,$E$14))","v":0},0,0,0]
[null,"du",null,"au",null,{"$f":"IF($E$15=\"\",0,DAYS360(C15,$E$15))","v":0},0,0,0]
[null,"du",null,"au",null,{"$f":"IF($E$16=\"\",0,DAYS360(C16,$E$16))","v":0},0,0,0]
[null,"du",null,"au",null,{"$f":"IF($E$17=\"\",0,DAYS360(C17,$E$17))","v":0},0,0,0]
[null,"du",null,"au",null,{"$f":"IF($E$18=\"\",0,DAYS360(C18,$E$18))","v":0},0,0,0]
[null,null,null,null,null,{"$f":"SUM(F5:F18)","v":0},0,0,0]
[null,"Stagiaire",null,null,null,null,null,null,null,null,null," "]
[null,"du",null,"au",null,{"$f":"IF($E$21=\"\",0,DAYS360(C21,$E$21))","v":0},{"$f":"ROUNDDOWN(F21/360,0)","v":0},{"$f":"ROUNDDOWN((F21-(G21*360))/30,0)","v":0},{"$f":"ROUNDDOWN(F21-(G21*360)-(H21*30),0)","v":0}]
[null,"Titulaire"]
[null,"depuis le",null,null," ",{"$f":"IF(C23<>0,IF($F$3=\"\",0,DAYS360(C23,$F$3)))","v":false},{"$f":"ROUNDDOWN(F23/360,0)","v":0},{"$f":"ROUNDDOWN((F23-(G23*360))/30,0)","v":0},{"$f":"ROUNDDOWN(F23-(G23*360)-(H23*30),0)","v":0}]
[]
[null,"Périodes d'interruption"]
[null,"congé parental"]
[null,"du",null,"au",null,{"$f":"IF($E$27=\"\",0,DAYS360(C27,E27))","v":0},{"$f":"ROUNDDOWN(F27/360,0)","v":0},{"$f":"ROUNDDOWN((F27-(G27*360))/30,0)","v":0},{"$f":"ROUNDDOWN(F27-(G27*360)-(H27*30),0)","v":0}]
[null,"du",null,"au",null,{"$f":"IF($E$28=\"\",0,DAYS360(C28,$E$28))","v":0},{"$f":"ROUNDDOWN(F28/360,0)","v":0},{"$f":"ROUNDDOWN((F28-(G28*360))/30,0)","v":0},{"$f":"ROUNDDOWN(F28-(G28*360)-(H28*30),0)","v":0}]
[null,"du",null,"au",null,{"$f":"IF($E$29=\"\",0,DAYS360(C29,$E$29))","v":0},{"$f":"ROUNDDOWN(F29/360,0)","v":0},{"$f":"ROUNDDOWN((F29-(G29*360))/30,0)","v":0},{"$f":"ROUNDDOWN(F29-(G29*360)-(H29*30),0)","v":0}]
[null,null,null,null,null,{"$f":"SUM(F27:F29)","v":0},{"$f":"ROUNDDOWN(F30/360,0)","v":0},{"$f":"ROUNDDOWN((F30-(G30*360))/30,0)","v":0},{"$f":"ROUNDDOWN(F30-(G30*360)-(H30*30),0)","v":0}]
[null,"disponibilité",null,null,null,null,null,null,null,null,null," "]
[null,"du",null,"au",null,{"$f":"IF($E$32=\"\",0,DAYS360(C32,$E$32))","v":0},{"$f":"ROUNDDOWN(F32/360,0)","v":0},{"$f":"ROUNDDOWN((F32-(G32*360))/30,0)","v":0},{"$f":"ROUNDDOWN(F32-(G32*360)-(H32*30),0)","v":0}," "]
[null,"du",null,"au",null,{"$f":"IF($E$33=\"\",0,DAYS360(C33,$E$33))","v":0},0,0,0]
[null,"du",null,"au",null,{"$f":"IF($E$34=\"\",0,DAYS360(C34,$E$34))","v":0},0,0,0]
[null,"du",null,"au",null,{"$f":"IF($E$35=\"\",0,DAYS360(C35,$E$35))","v":0},0,0,0]
[null,"du",null,"au",null,{"$f":"IF($E$36=\"\",0,DAYS360(C36,$E$36))","v":0},0,0,0]
[null,"du",null,"au",null,{"$f":"IF($E$37=\"\",0,DAYS360(C37,$E$37))","v":0},0,0,0]
[null,null,null,null,null,{"$f":"SUM(F32:F37)","v":0},0,{"$f":"ROUNDDOWN((F38-(G38*360))/30,0)","v":0},{"$f":"ROUNDDOWN(F38-(G38*360)-(H38*30),0)","v":0},null,null,null," "]
[]
[null,"Ancienneté (services publics effectifs) dans un ou des grades permettant l'accès au grade postulé  déduction faite des périodes d'interruptions d'activité (disponibilité, congé parental)",null,null,null,{"$f":"SUM(F19,F21,F23)-F30-F38","v":0},0,{"$f":"ROUNDDOWN((F40-(G40*360))/30,0)","v":0},{"$f":"ROUNDDOWN(F40-(G40*360)-(H40*30),0)","v":0},{"$f":"ROUNDDOWN((G40+(H40/12)+(I40/365)),0)","v":0}]
[]
[]
[]
[null,null,null,null,null,null,null,null,null," "]
[null,null,null,null,null,null,null,null,null," "]
[]
[null,null,null," "]

{"sheet":"Activité valorisante ","index":2,"n_rows":30,"n_cols":13,"rows_kept":30,"cut":false,"hidden":true,"merged":[[28,1,28,7],[29,1,29,7],[2,1,2,5],[3,1,3,5],[1,2,1,5],[20,1,21,9],[27,1,27,9]]}
[]
[]
[null,"Ancienneté dans une activité valorisante",null,null,null,null,"2023-12-31","Années","Mois","Jours"]
[null,"Activité valorisante"]
[null,null,"du",null,"au",null,{"$f":"IF($F$5=\"\",0,DAYS360(D5,$F$5))","v":0},{"$f":"ROUNDDOWN(G5/360,0)","v":0},{"$f":"ROUNDDOWN((G5-(H5*360))/30,0)","v":0},{"$f":"ROUNDDOWN(G5-(H5*360)-(I5*30),0)","v":0},null,null," "]
[null,null,"du",null,"au",null,{"$f":"IF($F$6=\"\",0,DAYS360(D6,$F$6))","v":0},0,0,0]
[null,null,"du",null,"au",null,{"$f":"IF($F$7=\"\",0,DAYS360(D7,$F$7))","v":0},0,0,0]
[null,null,"du",null,"au",null,{"$f":"IF($F$8=\"\",0,DAYS360(D8,$F$8))","v":0},0,0,0]
[null,null,"du",null,"au",null,{"$f":"IF($F$9=\"\",0,DAYS360(D9,$F$9))","v":0},0,0,0]
[null,null,"du",null,"au",null,{"$f":"IF($F$10=\"\",0,DAYS360(D10,$F$10))","v":0},0,0,0]
[null,null,"du",null,"au",null,{"$f":"IF($F$11=\"\",0,DAYS360(D11,$F$11))","v":0},0,0,0]
[null,null,"du",null,"au",null,{"$f":"IF($F$12=\"\",0,DAYS360(D12,$F$12))","v":0},0,0,0]
[null,null,"du",null,"au",null,{"$f":"IF($F$13=\"\",0,DAYS360(D13,$F$13))","v":0},0,0,0]
[null,null,"du",null,"au",null,{"$f":"IF($F$14=\"\",0,DAYS360(D14,$F$14))","v":0},0,0,0]
[null,null,"du",null,"au",null,{"$f":"IF($F$15=\"\",0,DAYS360(D15,$F$15))","v":0},0,0,0]
[null,null,"du",null,"au",null,{"$f":"IF($F$16=\"\",0,DAYS360(D16,$F$16))","v":0},0,0,0]
[null,null,"du",null,"au",null,{"$f":"IF($F$17=\"\",0,DAYS360(D17,$F$17))","v":0},0,0,0]
[null,null,"du",null,"au",null,{"$f":"IF($F$18=\"\",0,DAYS360(D18,$F$18))","v":0},0,0,0]
[null,null,null,null,null,null,{"$f":"SUM(G5:G18)","v":0},0,0,0]
[]
[null,"SST, CT, CAP, CHSCT, COS, CNAS (ne pas indiquer d'ancienneté si correspondant CNAS), membre du bureau d'une association, poste à responsabilité dans le secteur privé et/ou public ...)"]
[]
[]
[]
[null,null,null,null,null,null,null,null,null,null," "]
[null,null,null,null,null,null,null,null,null,null," "]
[null,"Exemples d'activités valorisantes pouvant être prises en compte :"]
[null,"Fonctions de Président, Secrétaire ou Trésorier d'association (ne pas compter les années en tant que membre ou entraineur)"]
[null,"Fonctions en responsabilité dans une entreprise privée"]
[null,"Membre de conseil d'administration"]

{"sheet":"paramètres","index":3,"n_rows":37,"n_cols":2,"rows_kept":37,"cut":false,"hidden":true,"merged":[]}
["oui"]
["non"]
[]
["Rédacteur "]
["Rédacteur principal de 2ème classe"]
["Animateur "]
["Animateur principal de 2ème classe"]
["Assistant de conservation du patrimoine et des bibliothèques"]
["Assistant de conservation du patrimoine et des bibliothèques  principal de 2ème classe"]
["Educateur des activités physiques et sportives "]
["Educateur des activités physiques et sportives principal de 2ème classe"]
["Technicien "]
["Technicien principal de 2ème classe"]
["Chef de service de police municipale"]
[]
["Attaché"]
["Ingénieur"]
["Conseiller socio-éducatif"]
["Conseiller des activités physiques et sportives"]
["Conservateur du patrimoine"]
["Conservateur de bibliothèques"]
["Attaché de conservation du patrimoine"]
["Bibliothécaire"]
["Directeur d'établissement d'enseignement artistique"]
["Professeur d'enseignement artistique"]
["Directeur de police municipale"]
[]
[]
[]
[]
[null,"valeur renvoyée"]
[]
["Aucun",0]
["1 agent",2]
["2 à 5 agents",3]
["6 à 10  agents",4]
["Plus de 10 agents",5]